[Event "*** Titled Tuesday Blitz"]
[Site "Chess.com"]
[Date "2020.02.04"]
[Round "6"]
[White "Sjakkerntobi"]
[Black "djano"]
[Result "1/2-1/2"]
[WhiteElo "2256"]
[BlackElo "2348"]
[TimeControl "180+2"]
[EndTime "14:21:57 PST"]
[Termination "Game drawn by stalemate"]

1. e4 {[%clk 0:03:01.9]} 1... d5 {[%clk 0:02:55.7]} 2. exd5 {[%clk 0:03:01.9]}
2... Qxd5 {[%clk 0:02:55.2]} 3. Nc3 {[%clk 0:03:01.3]} 3... Qa5 {[%clk
0:02:55.8]} 4. Bc4 {[%clk 0:02:47.2]} 4... Nf6 {[%clk 0:02:55.8]} 5. d3 {[%clk
0:02:45.5]} 5... Bg4 {[%clk 0:02:53.3]} 6. Ne2 {[%clk 0:02:42.8]} 6... c6 {[%clk
0:02:44]} 7. h3 {[%clk 0:02:17.6]} 7... Bh5 {[%clk 0:02:43]} 8. Bd2 {[%clk
0:02:16.4]} 8... Qc7 {[%clk 0:02:42.4]} 9. Bf4 {[%clk 0:02:16.4]} 9... e5 {[%clk
0:02:40.6]} 10. Bg3 {[%clk 0:02:13.6]} 10... Nbd7 {[%clk 0:02:41]} 11. d4 {[%clk
0:02:04.7]} 11... Bb4 {[%clk 0:02:37.1]} 12. O-O {[%clk 0:01:59.3]} 12... O-O-O
{[%clk 0:02:36.8]} 13. a3 {[%clk 0:01:57.1]} 13... Bd6 {[%clk 0:02:35.6]} 14. d5
{[%clk 0:01:52.6]} 14... Nb6 {[%clk 0:02:34.9]} 15. Ba2 {[%clk 0:01:41.5]} 15...
cxd5 {[%clk 0:02:35.8]} 16. Nb5 {[%clk 0:01:39.2]} 16... Qb8 {[%clk 0:02:31.4]}
17. Rc1 {[%clk 0:01:33.5]} 17... Ne4 {[%clk 0:02:21.8]} 18. c4 {[%clk
0:01:30.8]} 18... Nxg3 {[%clk 0:02:13.8]} 19. cxd5+ {[%clk 0:01:23.8]} 19... Kd7
{[%clk 0:02:14.9]} 20. fxg3 {[%clk 0:01:24.8]} 20... Rc8 {[%clk 0:02:08.3]} 21.
Qd3 {[%clk 0:01:16]} 21... Bg6 {[%clk 0:02:06.5]} 22. Qf3 {[%clk 0:01:02.5]}
22... f5 {[%clk 0:02:01.3]} 23. g4 {[%clk 0:00:52.8]} 23... f4 {[%clk
0:01:57.1]} 24. g5 {[%clk 0:00:51.7]} 24... Rhf8 {[%clk 0:01:48]} 25. Bb1 {[%clk
0:00:46.1]} 25... Bc5+ {[%clk 0:01:45.8]} 26. Kh1 {[%clk 0:00:45.4]} 26... Be3
{[%clk 0:01:35.9]} 27. Qg4+ {[%clk 0:00:44]} 27... Kd8 {[%clk 0:01:28.1]} 28.
Rxc8+ {[%clk 0:00:31.5]} 28... Qxc8 {[%clk 0:01:28.7]} 29. Qxc8+ {[%clk
0:00:25.6]} 29... Kxc8 {[%clk 0:01:29.9]} 30. Bxg6 {[%clk 0:00:26.2]} 30... hxg6
{[%clk 0:01:30.7]} 31. Nxa7+ {[%clk 0:00:28.1]} 31... Kb8 {[%clk 0:01:32.1]} 32.
Nb5 {[%clk 0:00:30]} 32... Nxd5 {[%clk 0:01:33.3]} 33. Rd1 {[%clk 0:00:29.8]}
33... Nb6 {[%clk 0:01:30.5]} 34. Nec3 {[%clk 0:00:22.9]} 34... Nc4 {[%clk
0:01:21.4]} 35. b3 {[%clk 0:00:22]} 35... Nd2 {[%clk 0:01:22.4]} 36. b4 {[%clk
0:00:20.1]} 36... e4 {[%clk 0:01:22.1]} 37. Nd6 {[%clk 0:00:20.1]} 37... Rf5
{[%clk 0:01:02.7]} 38. Ndxe4 {[%clk 0:00:19.6]} 38... Nc4 {[%clk 0:00:55.1]} 39.
h4 {[%clk 0:00:16.1]} 39... Nxa3 {[%clk 0:00:54]} 40. Rd8+ {[%clk 0:00:16.4]}
40... Kc7 {[%clk 0:00:55]} 41. Rg8 {[%clk 0:00:18.3]} 41... Bd4 {[%clk
0:00:56.1]} 42. Re8 {[%clk 0:00:13.3]} 42... Kd7 {[%clk 0:00:52.6]} 43. Rb8
{[%clk 0:00:12.9]} 43... Kc7 {[%clk 0:00:51.8]} 44. Re8 {[%clk 0:00:14.1]} 44...
b5 {[%clk 0:00:51.3]} 45. Re7+ {[%clk 0:00:14.5]} 45... Kd8 {[%clk 0:00:52.6]}
46. Ra7 {[%clk 0:00:15.2]} 46... Re5 {[%clk 0:00:49.2]} 47. Rxa3 {[%clk
0:00:14.6]} 47... Be3 {[%clk 0:00:39.1]} 48. Ra8+ {[%clk 0:00:15.6]} 48... Kc7
{[%clk 0:00:40.3]} 49. Rg8 {[%clk 0:00:16.5]} 49... Re7 {[%clk 0:00:41.4]} 50.
Ra8 {[%clk 0:00:16]} 50... Kb7 {[%clk 0:00:42]} 51. Rg8 {[%clk 0:00:16.5]} 51...
Rd7 {[%clk 0:00:42.4]} 52. Nc5+ {[%clk 0:00:15.1]} 52... Bxc5 {[%clk 0:00:43.4]}
53. bxc5 {[%clk 0:00:17]} 53... b4 {[%clk 0:00:45.3]} 54. Na4 {[%clk 0:00:14.2]}
54... Kc6 {[%clk 0:00:46.3]} 55. Rc8+ {[%clk 0:00:15.2]} 55... Kb5 {[%clk
0:00:47.6]} 56. c6 {[%clk 0:00:16.6]} 56... Rd1+ {[%clk 0:00:48]} 57. Kh2 {[%clk
0:00:16.9]} 57... Rc1 {[%clk 0:00:43.4]} 58. c7 {[%clk 0:00:16.6]} 58... Kc6
{[%clk 0:00:44.7]} 59. Rb8 {[%clk 0:00:15.7]} 59... Kxc7 {[%clk 0:00:44.4]} 60.
Rxb4 {[%clk 0:00:16.8]} 60... Rf1 {[%clk 0:00:45.3]} 61. Nb2 {[%clk 0:00:18.1]}
61... Kd6 {[%clk 0:00:44.8]} 62. Nd3 {[%clk 0:00:19]} 62... f3 {[%clk
0:00:46.3]} 63. gxf3 {[%clk 0:00:20]} 63... Rxf3 {[%clk 0:00:48.2]} 64. Ne1
{[%clk 0:00:20.8]} 64... Ra3 {[%clk 0:00:48.3]} 65. Ng2 {[%clk 0:00:21.5]} 65...
Ke6 {[%clk 0:00:48.7]} 66. Rf4 {[%clk 0:00:22.7]} 66... Ke5 {[%clk 0:00:49.3]}
67. Rf2 {[%clk 0:00:23.4]} 67... Ke6 {[%clk 0:00:50.1]} 68. Re2+ {[%clk
0:00:24.2]} 68... Kf5 {[%clk 0:00:50.6]} 69. Rf2+ {[%clk 0:00:24]} 69... Kg4
{[%clk 0:00:52]} 70. Rf4+ {[%clk 0:00:25.2]} 70... Kh5 {[%clk 0:00:53.5]} 71.
Re4 {[%clk 0:00:24.6]} 71... Rh3+ {[%clk 0:00:52.2]} 72. Kg1 {[%clk 0:00:22.7]}
72... Rh1+ {[%clk 0:00:53.5]} 73. Kf2 {[%clk 0:00:21.7]} 73... Rf1+ {[%clk
0:00:55.4]} 74. Ke3 {[%clk 0:00:22.8]} 74... Rf3+ {[%clk 0:00:53.1]} 75. Kd4
{[%clk 0:00:23.2]} 75... Rd3+ {[%clk 0:00:54.3]} 76. Ke5 {[%clk 0:00:24.4]}
76... Rd5+ {[%clk 0:00:55.4]} 77. Kf4 {[%clk 0:00:25.6]} 77... Rf5+ {[%clk
0:00:53.6]} 78. Kg3 {[%clk 0:00:26.8]} 78... Rf3+ {[%clk 0:00:54.6]} 79. Kh2
{[%clk 0:00:28.3]} 79... Rh3+ {[%clk 0:00:54.9]} 80. Kg1 {[%clk 0:00:29.8]}
80... Rh1+ {[%clk 0:00:56.3]} 81. Kf2 {[%clk 0:00:31]} 81... Rf1+ {[%clk
0:00:57.8]} 82. Ke2 {[%clk 0:00:32.2]} 82... Rf2+ {[%clk 0:00:57.4]} 83. Kxf2
{[%clk 0:00:30.4]} 1/2-1/2

[Event "*** Titled Tuesday Blitz"]
[Site "Chess.com"]
[Date "2020.02.04"]
[Round "6"]
[White "korbul"]
[Black "Jahonas"]
[Result "0-1"]
[WhiteElo "2562"]
[BlackElo "2436"]
[TimeControl "180+2"]
[EndTime "14:22:28 PST"]
[Termination "Jahonas won by resignation"]

1. d4 {[%clk 0:03:01.9]} 1... Nf6 {[%clk 0:03:00.4]} 2. Nf3 {[%clk 0:03:02.1]}
2... d5 {[%clk 0:03:01.3]} 3. c4 {[%clk 0:03:02.9]} 3... e6 {[%clk 0:03:02.1]}
4. Bg5 {[%clk 0:03:03.6]} 4... Be7 {[%clk 0:03:02.9]} 5. e3 {[%clk 0:03:04.5]}
5... c6 {[%clk 0:03:04.1]} 6. Nc3 {[%clk 0:03:05.4]} 6... h6 {[%clk 0:03:05.5]}
7. Bh4 {[%clk 0:03:05.5]} 7... Ne4 {[%clk 0:03:06.7]} 8. Bxe7 {[%clk 0:03:05.2]}
8... Nxc3 {[%clk 0:03:07.6]} 9. Bxd8 {[%clk 0:03:02]} 9... Nxd1 {[%clk
0:03:08.4]} 10. Rxd1 {[%clk 0:03:03]} 10... Kxd8 {[%clk 0:03:09.2]} 11. Be2
{[%clk 0:03:03]} 11... f6 {[%clk 0:03:09.4]} 12. O-O {[%clk 0:03:03.4]} 12... b6
{[%clk 0:03:08.4]} 13. Rd2 {[%clk 0:03:04]} 13... Bb7 {[%clk 0:03:09.6]} 14. Rc1
{[%clk 0:03:04.6]} 14... Nd7 {[%clk 0:03:10.5]} 15. h3 {[%clk 0:03:02.2]} 15...
Rc8 {[%clk 0:03:10.5]} 16. b3 {[%clk 0:03:02]} 16... Re8 {[%clk 0:03:08.7]} 17.
g4 {[%clk 0:02:55.2]} 17... dxc4 {[%clk 0:03:03.9]} 18. Rxc4 {[%clk 0:02:46.4]}
18... Ke7 {[%clk 0:02:50.7]} 19. Kh2 {[%clk 0:02:46.6]} 19... c5 {[%clk
0:02:49.6]} 20. Kg3 {[%clk 0:02:42.3]} 20... Bd5 {[%clk 0:02:40.8]} 21. Rcc2
{[%clk 0:02:43.1]} 21... Bxf3 {[%clk 0:02:38.1]} 22. Bxf3 {[%clk 0:02:40.9]}
22... cxd4 {[%clk 0:02:39]} 23. exd4 {[%clk 0:02:41.3]} 23... Kd6 {[%clk
0:02:33.6]} 24. Be4 {[%clk 0:02:40.6]} 24... a5 {[%clk 0:02:25.6]} 25. f4 {[%clk
0:02:41.1]} 25... Rc7 {[%clk 0:02:14.1]} 26. Rxc7 {[%clk 0:02:40.5]} 26... Kxc7
{[%clk 0:02:14.9]} 27. d5 {[%clk 0:02:37.5]} 27... exd5 {[%clk 0:02:12.2]} 28.
Bxd5 {[%clk 0:02:38.6]} 28... Nc5 {[%clk 0:02:11.5]} 29. Kf3 {[%clk 0:02:23.8]}
29... Rd8 {[%clk 0:02:07.9]} 30. Ke3 {[%clk 0:02:23.2]} 30... Rd6 {[%clk
0:01:52.5]} 31. h4 {[%clk 0:02:19.2]} 31... Kd8 {[%clk 0:01:50]} 32. h5 {[%clk
0:02:17.8]} 32... Na6 {[%clk 0:01:49.5]} 33. Bc4 {[%clk 0:02:10.5]} 33... Rxd2
{[%clk 0:01:49.4]} 34. Kxd2 {[%clk 0:02:11.6]} 34... Nb4 {[%clk 0:01:46.1]} 35.
a3 {[%clk 0:02:10.6]} 35... Nc6 {[%clk 0:01:45.9]} 36. Ke3 {[%clk 0:02:08.9]}
36... Kc7 {[%clk 0:01:24.4]} 37. Ke4 {[%clk 0:02:09]} 37... Ne7 {[%clk
0:01:24.5]} 38. Bf7 {[%clk 0:02:02.9]} 38... Kd6 {[%clk 0:01:24.7]} 39. Be8
{[%clk 0:02:01.7]} 39... Ke6 {[%clk 0:01:16.8]} 40. Kd4 {[%clk 0:02:01.2]} 40...
Nc8 {[%clk 0:00:52]} 41. Bc6 {[%clk 0:01:53.3]} 41... Ne7 {[%clk 0:00:48.9]} 42.
Bf3 {[%clk 0:01:49.9]} 42... Kd6 {[%clk 0:00:45.4]} 43. Kc4 {[%clk 0:01:46.1]}
43... f5 {[%clk 0:00:36]} 44. g5 {[%clk 0:01:46.3]} 44... Nc8 {[%clk 0:00:22.1]}
45. g6 {[%clk 0:01:30.8]} 45... Ne7 {[%clk 0:00:21.9]} 46. Kb5 {[%clk
0:01:23.2]} 46... Kc7 {[%clk 0:00:22]} 47. Bg2 {[%clk 0:01:15.1]} 47... Ng8
{[%clk 0:00:22.4]} 48. Kc4 {[%clk 0:01:09.1]} 48... Nf6 {[%clk 0:00:22.6]} 49.
Bf3 {[%clk 0:01:08.8]} 49... Kd6 {[%clk 0:00:23.2]} 50. Kd4 {[%clk 0:01:10]}
50... Nd7 {[%clk 0:00:21.2]} 51. Bd1 {[%clk 0:01:07.9]} 51... Nc5 {[%clk
0:00:21.7]} 52. Bc2 {[%clk 0:01:08.6]} 52... Ne6+ {[%clk 0:00:22.3]} 53. Ke3
{[%clk 0:01:09.7]} 53... Nc5 {[%clk 0:00:22]} 54. a4 {[%clk 0:00:42.9]} 54...
Nd7 {[%clk 0:00:22.3]} 55. Bxf5 {[%clk 0:00:42.4]} 55... Nf6 {[%clk 0:00:23.4]}
56. Kd4 {[%clk 0:00:41.3]} 56... Nxh5 {[%clk 0:00:24.3]} 57. Kc4 {[%clk
0:00:42.1]} 57... Nxf4 {[%clk 0:00:24.9]} 58. Kb5 {[%clk 0:00:43.2]} 58... Kc7
{[%clk 0:00:24.8]} 59. Kc4 {[%clk 0:00:43.9]} 59... h5 {[%clk 0:00:24.4]} 60.
Kd4 {[%clk 0:00:44.5]} 60... h4 {[%clk 0:00:25.5]} 61. Ke5 {[%clk 0:00:45.2]}
61... Ne2 {[%clk 0:00:23.7]} 62. Bh3 {[%clk 0:00:40.9]} 62... Ng1 {[%clk
0:00:23.1]} 63. Bg2 {[%clk 0:00:38.8]} 63... h3 {[%clk 0:00:24.4]} 64. Ba8
{[%clk 0:00:39.4]} 64... Kd7 {[%clk 0:00:24.6]} 65. Kf4 {[%clk 0:00:40.6]} 65...
Ne2+ {[%clk 0:00:23.8]} 66. Kg4 {[%clk 0:00:39.2]} 66... Nd4 {[%clk 0:00:24.7]}
67. Kxh3 {[%clk 0:00:38]} 67... Nxb3 {[%clk 0:00:25.4]} 68. Be4 {[%clk
0:00:36.3]} 68... Nc5 {[%clk 0:00:25.7]} 69. Bc2 {[%clk 0:00:37.3]} 69... Kd6
{[%clk 0:00:26.9]} 70. Kg4 {[%clk 0:00:38.4]} 70... Ke5 {[%clk 0:00:28.2]} 71.
Kf3 {[%clk 0:00:38.4]} 71... Ne6 {[%clk 0:00:27.4]} 72. Ke3 {[%clk 0:00:38.2]}
72... Nd4 {[%clk 0:00:27.6]} 73. Bd1 {[%clk 0:00:37.6]} 73... Kd5 {[%clk
0:00:27.8]} 74. Kd3 {[%clk 0:00:38.3]} 74... Kc5 {[%clk 0:00:28.8]} 75. Ke4
{[%clk 0:00:39]} 75... b5 {[%clk 0:00:21.3]} 76. axb5 {[%clk 0:00:39.3]} 76...
Nxb5 {[%clk 0:00:22.4]} 77. Ke5 {[%clk 0:00:40.7]} 77... Nd4 {[%clk 0:00:22]}
78. Ba4 {[%clk 0:00:33.7]} 78... Kb4 {[%clk 0:00:21.2]} 79. Be8 {[%clk
0:00:34.4]} 79... Nb5 {[%clk 0:00:20.3]} 80. Bf7 {[%clk 0:00:31.1]} 80... a4
{[%clk 0:00:20.9]} 81. Ke6 {[%clk 0:00:29.3]} 81... Na3 {[%clk 0:00:20.6]} 82.
Ke7 {[%clk 0:00:25.3]} 82... Nc4 {[%clk 0:00:21.9]} 83. Bxc4 {[%clk 0:00:16]}
83... Kxc4 {[%clk 0:00:22.8]} 84. Kf7 {[%clk 0:00:17.9]} 84... a3 {[%clk
0:00:24.4]} 85. Kxg7 {[%clk 0:00:19.3]} 85... a2 {[%clk 0:00:26.3]} 86. Kf8
{[%clk 0:00:17.9]} 86... a1=Q {[%clk 0:00:28.2]} 87. g7 {[%clk 0:00:19.4]} 87...
Qf6+ {[%clk 0:00:28.7]} 88. Kg8 {[%clk 0:00:20.5]} 88... Kd5 {[%clk 0:00:29.7]}
89. Kh7 {[%clk 0:00:22.4]} 89... Qh4+ {[%clk 0:00:30.3]} 90. Kg6 {[%clk
0:00:23.1]} 90... Qg4+ {[%clk 0:00:31.6]} 91. Kf7 {[%clk 0:00:24.3]} 91... Qf5+
{[%clk 0:00:32.5]} 92. Ke7 {[%clk 0:00:25.3]} 92... Qg6 {[%clk 0:00:33.2]} 93.
Kf8 {[%clk 0:00:26.1]} 93... Qf6+ {[%clk 0:00:34.4]} 94. Kg8 {[%clk 0:00:27.2]}
94... Ke6 {[%clk 0:00:35.1]} 95. Kh7 {[%clk 0:00:29.1]} 95... Qh4+ {[%clk
0:00:35.9]} 96. Kg6 {[%clk 0:00:29.7]} 96... Qg4+ {[%clk 0:00:37]} 97. Kh6
{[%clk 0:00:29.8]} 97... Kf7 {[%clk 0:00:36.6]} 98. g8=Q+ {[%clk 0:00:28.5]}
98... Qxg8 {[%clk 0:00:37.6]} 0-1

[Event "*** Titled Tuesday Blitz"]
[Site "Chess.com"]
[Date "2020.02.04"]
[Round "6"]
[White "Anton_Demchenko"]
[Black "Chigorinetz"]
[Result "1-0"]
[WhiteElo "2957"]
[BlackElo "2566"]
[TimeControl "180+2"]
[EndTime "14:23:50 PST"]
[Termination "Anton_Demchenko won on time"]

1. e4 {[%clk 0:03:01.9]} 1... c5 {[%clk 0:03:00.3]} 2. Nf3 {[%clk 0:03:02.6]}
2... Nc6 {[%clk 0:03:01.6]} 3. Bb5 {[%clk 0:03:02.5]} 3... g5 {[%clk 0:03:02.3]}
4. h3 {[%clk 0:02:59.3]} 4... Nf6 {[%clk 0:03:01.5]} 5. d3 {[%clk 0:02:59.2]}
5... h6 {[%clk 0:03:01.6]} 6. Nc3 {[%clk 0:02:56.9]} 6... Bg7 {[%clk 0:03:01.9]}
7. Be3 {[%clk 0:02:53.7]} 7... g4 {[%clk 0:02:52.9]} 8. Nh4 {[%clk 0:02:46]}
8... Nd4 {[%clk 0:02:49.8]} 9. Bc4 {[%clk 0:02:41.7]} 9... gxh3 {[%clk
0:02:46.9]} 10. g4 {[%clk 0:02:30.7]} 10... d5 {[%clk 0:02:42.6]} 11. Nxd5
{[%clk 0:02:30]} 11... Nxg4 {[%clk 0:02:41.2]} 12. Nf3 {[%clk 0:01:44]} 12...
Nxe3 {[%clk 0:02:38]} 13. fxe3 {[%clk 0:01:43.8]} 13... b5 {[%clk 0:02:32.8]}
14. exd4 {[%clk 0:01:23]} 14... bxc4 {[%clk 0:02:32.5]} 15. Rg1 {[%clk
0:01:09.6]} 15... h2 {[%clk 0:02:19.5]} 16. Rh1 {[%clk 0:00:44.9]} 16... e6
{[%clk 0:02:12.1]} 17. Ne3 {[%clk 0:00:46.1]} 17... cxd3 {[%clk 0:02:11.3]} 18.
cxd3 {[%clk 0:00:45.2]} 18... Bxd4 {[%clk 0:02:03.9]} 19. Nc4 {[%clk 0:00:39.8]}
19... Rg8 {[%clk 0:01:58.8]} 20. Rxh2 {[%clk 0:00:35.6]} 20... Qf6 {[%clk
0:01:51.7]} 21. Qe2 {[%clk 0:00:36.8]} 21... Qf4 {[%clk 0:01:47.9]} 22. Rg2
{[%clk 0:00:31.1]} 22... Kf8 {[%clk 0:01:26]} 23. Rxg8+ {[%clk 0:00:25]} 23...
Kxg8 {[%clk 0:01:26.4]} 24. Qg2+ {[%clk 0:00:26.7]} 24... Kh7 {[%clk 0:01:24.2]}
25. Ke2 {[%clk 0:00:24.2]} 25... Ba6 {[%clk 0:01:16.5]} 26. Rf1 {[%clk
0:00:21.4]} 26... Bxc4 {[%clk 0:01:14.3]} 27. Nxd4 {[%clk 0:00:19.1]} 27... Qg5
{[%clk 0:01:06.6]} 28. Qxg5 {[%clk 0:00:11.2]} 28... hxg5 {[%clk 0:01:07]} 29.
Nf3 {[%clk 0:00:12.6]} 29... Bxa2 {[%clk 0:01:00]} 30. Nxg5+ {[%clk 0:00:13.7]}
30... Kg7 {[%clk 0:01:01]} 31. Nxf7 {[%clk 0:00:12.6]} 31... c4 {[%clk
0:00:57.8]} 32. Ne5 {[%clk 0:00:10.1]} 32... cxd3+ {[%clk 0:00:57.5]} 33. Kxd3
{[%clk 0:00:11.6]} 33... Rd8+ {[%clk 0:00:53.8]} 34. Ke3 {[%clk 0:00:12.4]}
34... a6 {[%clk 0:00:50.2]} 35. Rf7+ {[%clk 0:00:09]} 35... Kg8 {[%clk
0:00:45.9]} 36. Rb7 {[%clk 0:00:10.3]} 36... Rd1 {[%clk 0:00:45]} 37. Rb6 {[%clk
0:00:05.1]} 37... a5 {[%clk 0:00:41.3]} 38. Rb5 {[%clk 0:00:04.9]} 38... a4
{[%clk 0:00:41.1]} 39. Rb8+ {[%clk 0:00:04.9]} 39... Kg7 {[%clk 0:00:41.2]} 40.
Rb7+ {[%clk 0:00:06.8]} 40... Kf8 {[%clk 0:00:40.8]} 41. Nd7+ {[%clk 0:00:08]}
41... Ke7 {[%clk 0:00:36.4]} 42. Nc5+ {[%clk 0:00:09.9]} 42... Kf6 {[%clk
0:00:35.7]} 43. Nxa4 {[%clk 0:00:09.5]} 43... Re1+ {[%clk 0:00:36.4]} 44. Kf3
{[%clk 0:00:08]} 44... Ke5 {[%clk 0:00:31.9]} 45. Nc3 {[%clk 0:00:08.5]} 45...
Bc4 {[%clk 0:00:32.4]} 46. Kf2 {[%clk 0:00:08.8]} 46... Rh1 {[%clk 0:00:30.1]}
47. Rc7 {[%clk 0:00:07.4]} 47... Bd3 {[%clk 0:00:29.2]} 48. Ke3 {[%clk
0:00:05.8]} 48... Rh3+ {[%clk 0:00:29.1]} 49. Kd2 {[%clk 0:00:07]} 49... Ba6
{[%clk 0:00:29.6]} 50. Ra7 {[%clk 0:00:05.4]} 50... Bc4 {[%clk 0:00:29.9]} 51.
Rc7 {[%clk 0:00:05.4]} 51... Bf1 {[%clk 0:00:26.8]} 52. b4 {[%clk 0:00:06.1]}
52... Rh2+ {[%clk 0:00:26.5]} 53. Ke3 {[%clk 0:00:05.3]} 53... Rh3+ {[%clk
0:00:26.4]} 54. Kd2 {[%clk 0:00:06.8]} 54... Rh2+ {[%clk 0:00:24.2]} 55. Kd1
{[%clk 0:00:06.9]} 55... Kd4 {[%clk 0:00:23.3]} 56. Ke1 {[%clk 0:00:04.7]} 56...
Bd3 {[%clk 0:00:23.3]} 57. b5 {[%clk 0:00:04.4]} 57... Ke3 {[%clk 0:00:23.2]}
58. Nd1+ {[%clk 0:00:05.7]} 58... Kf3 {[%clk 0:00:20.5]} 59. Rc3 {[%clk
0:00:04.7]} 59... Re2+ {[%clk 0:00:20.6]} 60. Kf1 {[%clk 0:00:06.3]} 60... Kxe4
{[%clk 0:00:21.4]} 61. Nf2+ {[%clk 0:00:05.3]} 61... Kf5 {[%clk 0:00:20.1]} 62.
Rxd3 {[%clk 0:00:05.8]} 62... Rb2 {[%clk 0:00:21]} 63. Rf3+ {[%clk 0:00:05.7]}
63... Kg6 {[%clk 0:00:19.9]} 64. Re3 {[%clk 0:00:06.5]} 64... Kf5 {[%clk
0:00:10.6]} 65. Ne4 {[%clk 0:00:05.6]} 65... Kf4 {[%clk 0:00:09.8]} 66. Re1
{[%clk 0:00:06.2]} 66... Rxb5 {[%clk 0:00:09.9]} 67. Nf2 {[%clk 0:00:07.1]}
67... e5 {[%clk 0:00:07.8]} 68. Ra1 {[%clk 0:00:07]} 68... e4 {[%clk 0:00:07.9]}
69. Ra4 {[%clk 0:00:08]} 69... Kf3 {[%clk 0:00:08.5]} 70. Ra3+ {[%clk
0:00:04.4]} 70... e3 {[%clk 0:00:08]} 71. Nd1 {[%clk 0:00:05.7]} 71... Rb1
{[%clk 0:00:07.3]} 72. Ke1 {[%clk 0:00:07.1]} 72... Kf4 {[%clk 0:00:07.2]} 73.
Ke2 {[%clk 0:00:07.5]} 73... Rc1 {[%clk 0:00:08]} 74. Ra4+ {[%clk 0:00:07.5]}
74... Ke5 {[%clk 0:00:08]} 75. Nxe3 {[%clk 0:00:09]} 75... Rb1 {[%clk
0:00:07.8]} 76. Kf3 {[%clk 0:00:09.6]} 76... Ke6 {[%clk 0:00:08.5]} 77. Ra5
{[%clk 0:00:10.6]} 77... Ke7 {[%clk 0:00:09.4]} 78. Ke4 {[%clk 0:00:11.3]} 78...
Re1 {[%clk 0:00:10.4]} 79. Rh5 {[%clk 0:00:11.1]} 79... Re2 {[%clk 0:00:11]} 80.
Kd4 {[%clk 0:00:12.2]} 80... Re1 {[%clk 0:00:11.5]} 81. Nd5+ {[%clk 0:00:11.9]}
81... Kf7 {[%clk 0:00:12.1]} 82. Rh6 {[%clk 0:00:11.9]} 82... Kg7 {[%clk
0:00:12.5]} 83. Ra6 {[%clk 0:00:12.4]} 83... Re2 {[%clk 0:00:12.4]} 84. Nf4
{[%clk 0:00:13.4]} 84... Re1 {[%clk 0:00:12.4]} 85. Kd5 {[%clk 0:00:14.8]} 85...
Kf7 {[%clk 0:00:12.2]} 86. Nd3 {[%clk 0:00:15.6]} 86... Re2 {[%clk 0:00:10.5]}
87. Ne5+ {[%clk 0:00:16.3]} 87... Kg7 {[%clk 0:00:10.7]} 88. Rg6+ {[%clk
0:00:17.8]} 88... Kh7 {[%clk 0:00:10.8]} 89. Rg1 {[%clk 0:00:19.7]} 89... Kh6
{[%clk 0:00:09.4]} 90. Ke6 {[%clk 0:00:21.1]} 90... Kh5 {[%clk 0:00:08.6]} 91.
Rg8 {[%clk 0:00:19]} 91... Rf2 {[%clk 0:00:07.1]} 92. Kd5 {[%clk 0:00:15.3]}
92... Re2 {[%clk 0:00:05.7]} 93. Kd4 {[%clk 0:00:14.7]} 93... Kh6 {[%clk
0:00:05.3]} 94. Kd5 {[%clk 0:00:13.9]} 94... Kh7 {[%clk 0:00:05.6]} 95. Rg3
{[%clk 0:00:14.9]} 95... Re1 {[%clk 0:00:06.3]} 96. Ke6 {[%clk 0:00:16.3]} 96...
Rf1 {[%clk 0:00:06.3]} 97. Nf3 {[%clk 0:00:16.5]} 97... Ra1 {[%clk 0:00:06.1]}
98. Kf5 {[%clk 0:00:16]} 98... Rf1 {[%clk 0:00:05.5]} 99. Kf6 {[%clk 0:00:16.9]}
99... Rf2 {[%clk 0:00:05.4]} 100. Kf7 {[%clk 0:00:18.2]} 1-0

[Event "*** Titled Tuesday Blitz"]
[Site "Chess.com"]
[Date "2020.02.04"]
[Round "7"]
[White "vellottiwizard"]
[Black "Gahan-MG"]
[Result "1-0"]
[WhiteElo "2697"]
[BlackElo "2463"]
[TimeControl "180+2"]
[EndTime "14:27:53 PST"]
[Termination "vellottiwizard won by resignation"]

1. e4 {[%clk 0:03:00.5]} 1... Nf6 {[%clk 0:02:57.6]} 2. e5 {[%clk 0:03:00.6]}
2... Nd5 {[%clk 0:02:58.9]} 3. d4 {[%clk 0:03:01.6]} 3... d6 {[%clk 0:02:59.6]}
4. c4 {[%clk 0:03:00.3]} 4... Nb6 {[%clk 0:03:00.7]} 5. exd6 {[%clk 0:03:01.8]}
5... exd6 {[%clk 0:03:02.6]} 6. Bd3 {[%clk 0:02:57.5]} 6... Be7 {[%clk
0:03:03.1]} 7. Ne2 {[%clk 0:02:57.5]} 7... Bf6 {[%clk 0:03:04]} 8. b3 {[%clk
0:02:55.8]} 8... c5 {[%clk 0:03:03.5]} 9. Bb2 {[%clk 0:02:56.5]} 9... Nc6 {[%clk
0:03:04.5]} 10. O-O {[%clk 0:02:52.1]} 10... O-O {[%clk 0:02:58.1]} 11. Nd2
{[%clk 0:02:52.6]} 11... cxd4 {[%clk 0:02:55]} 12. Ne4 {[%clk 0:02:36.4]} 12...
Bg4 {[%clk 0:02:43.4]} 13. f3 {[%clk 0:02:31.5]} 13... Bf5 {[%clk 0:02:43.9]}
14. Nxf6+ {[%clk 0:02:29.1]} 14... Qxf6 {[%clk 0:02:45.8]} 15. Bxf5 {[%clk
0:02:30.5]} 15... Qxf5 {[%clk 0:02:47.4]} 16. Nxd4 {[%clk 0:02:32]} 16... Qf6
{[%clk 0:02:43.1]} 17. Qd2 {[%clk 0:02:30.8]} 17... Ne5 {[%clk 0:02:42.3]} 18.
Rac1 {[%clk 0:02:29]} 18... Rfd8 {[%clk 0:02:40.5]} 19. Nb5 {[%clk 0:02:20.6]}
19... d5 {[%clk 0:02:30.6]} 20. c5 {[%clk 0:02:17.4]} 20... Nbd7 {[%clk
0:02:19.9]} 21. f4 {[%clk 0:02:16.8]} 21... Qc6 {[%clk 0:02:18.8]} 22. Nd4
{[%clk 0:02:15.8]} 22... Qh6 {[%clk 0:02:10.4]} 23. Nf5 {[%clk 0:02:13.1]} 23...
Qe6 {[%clk 0:01:56.9]} 24. fxe5 {[%clk 0:02:13.6]} 24... Nxe5 {[%clk 0:01:58.8]}
25. Qg5 {[%clk 0:02:12.7]} 1-0

[Event "*** Titled Tuesday Blitz"]
[Site "Chess.com"]
[Date "2020.02.04"]
[Round "7"]
[White "DonBroca"]
[Black "MikeSailer"]
[Result "0-1"]
[WhiteElo "2142"]
[BlackElo "2117"]
[TimeControl "180+2"]
[EndTime "14:28:12 PST"]
[Termination "MikeSailer won by resignation"]

1. d4 {[%clk 0:02:57.6]} 1... d5 {[%clk 0:03:01]} 2. Bf4 {[%clk 0:02:58.4]} 2...
Nf6 {[%clk 0:02:59.6]} 3. e3 {[%clk 0:02:59]} 3... Bf5 {[%clk 0:03:01]} 4. Nf3
{[%clk 0:02:58.8]} 4... e6 {[%clk 0:03:02.4]} 5. h3 {[%clk 0:02:59.5]} 5... Be7
{[%clk 0:03:03.4]} 6. Nc3 {[%clk 0:03:00.5]} 6... O-O {[%clk 0:03:04.2]} 7. Be2
{[%clk 0:03:01.2]} 7... c5 {[%clk 0:03:05.3]} 8. O-O {[%clk 0:03:01.3]} 8...
Nbd7 {[%clk 0:03:05.1]} 9. Nh4 {[%clk 0:02:41.7]} 9... Be4 {[%clk 0:03:03.9]}
10. Nxe4 {[%clk 0:02:41.9]} 10... dxe4 {[%clk 0:03:03]} 11. g3 {[%clk
0:02:09.1]} 11... Nd5 {[%clk 0:02:56.3]} 12. Ng2 {[%clk 0:02:07.5]} 12... g5
{[%clk 0:02:53.1]} 13. Be5 {[%clk 0:01:36.3]} 13... f6 {[%clk 0:02:52.9]} 14.
Bh5 {[%clk 0:01:29.8]} 14... fxe5 {[%clk 0:02:48.4]} 15. Qg4 {[%clk 0:01:29.3]}
15... Rf5 {[%clk 0:02:24.8]} 16. Nh4 {[%clk 0:01:21.2]} 16... N7f6 {[%clk
0:02:11.7]} 0-1